[Event "European Women Blitz-ch 2024"]
[Site "Monaco"]
[Date "2025.01.10"]
[Round "3.18"]
[White "Charkhalashvili, Inga"]
[Black "Doluhanova, Evgeniya"]
[Result "1-0"]
[Annotator "TA"]
[ECO "E50"]
[WhiteElo "2240"]
[BlackElo "2273"]
[PlyCount "79"]
[EventDate "2025.01.06"]
[EventType "swiss"]
[EventCountry "MNC"]
[SourceTitle "playchess.com"]
[Source "ChessBase"]
[SourceQuality "1"]
[TimeControl "180+2"]

{[%evp 9,79,-2,24,12,16,17,62,7,110,113,213,209,253,55,50,52,47,-34,-27,-30,-41,-31,-39,-52,-58,-49,-60,-30,-38,-49,17,17,350,356,362,368,350,301,285,222,337,332,414,414,405,394,457,427,433,439,479,354,318,128,537,564,649,470,445,416,683,662,1086,1087,1245,1208,1873,1091,1004,735,740,736]} 1. d4 {[%emt 0:00:01]} Nf6 {[%emt 0:00:02]} 2. c4 {[%emt 0:00:01]} e6 {[%emt 0:00:01]} 3. Nc3 {[%emt 0:00:02]} Bb4 {[%emt 0:00:02]} 4. e3 {[%emt 0:00:02]} O-O {[%emt 0:00:02]} 5. Nf3 {[%emt 0:00:01]} Re8 {[%emt 0:00:06]} 6. Bd3 {[%emt 0:00:02]} d6 {[%emt 0:00:10]} 7. O-O {[%emt 0:00:03]} Nc6 {[%emt 0:00:21]} 8. Qc2 {[%emt 0:00:11]} ({White should play} 8. Na4 $14) 8... e5 {[%emt 0:00:16]} (8... Bxc3 $1 $11 9. bxc3 (9. Qxc3 e5 $11) 9... e5) 9. Nd5 $16 {[%emt 0:00:14]} exd4 {[%emt 0:00:31]} (9... Ba5 $16) 10. exd4 $18 {[%emt 0:00:06]} (10. Nxd4 $6 Nxd4 11. Nxf6+ (11. exd4 Nxd5 12. cxd5 Bg4 $14) 11... Qxf6 $14) 10... Bg4 {[%emt 0:00:04]} 11. Be3 $2 {[%emt 0:01:06]} (11. Bg5 $18) 11... Bxf3 $14 {[%emt 0:00:35]} 12. gxf3 {[%emt 0:00:02]} Ba5 {[%emt 0:00:13]} 13. Kh1 {[%emt 0:00:20]} (13. Bg5 $14) 13... Nxd5 $1 $15 {[%emt 0:00:09]} 14. cxd5 {[%emt 0:00:01]} Nb4 {[%emt 0:00:01][%csl LRc2,LRd5]} 15. Bxh7+ {[%emt 0:00:09]} Kh8 {[%emt 0:00:02]} 16. Qf5 {[%emt 0:00:01]} Qh4 {[%emt 0:00:07] Prevents Qh5.} 17. a3 $1 {[%emt 0:00:27]} Qxh7 {[%emt 0:00:15]} (17... g6 {with more complications.} 18. Bg5 gxf5 19. Bxh4 Kxh7 20. axb4 Bb6) 18. Qxh7+ {[%emt 0:00:07]} Kxh7 {[%emt 0:00:01]} 19. axb4 {[%emt 0:00:01]} Bxb4 {[%emt 0:00:02]} (19... Bb6 $1 $15) 20. Rfc1 $36 {[%emt 0:00:09][%mdl 2048] White has some pressure.} Re7 $2 {[%emt 0:00:05][%mdl 8192] [#]} (20... Rec8 $1 $11 {and Black stays safe.}) 21. Rc4 $1 $18 {[%emt 0:00:01]} Rxe3 {[%emt 0:00:29]} 22. fxe3 {[%emt 0:00:01][%mdl 4096] Endgame KRR-KRB} Bd2 {[%emt 0:00:01]} 23. Rxc7 {[%emt 0:00:01]} Bxe3 {[%emt 0:00:03]} 24. Rd1 {[%emt 0:00:18]} b5 {[%emt 0:00:08]} (24... Kg6 {was worth a try.} 25. Rxb7 Rc8 26. Rxa7 Rc2) 25. Re7 {[%emt 0:00:09]} Bf4 {[%emt 0:00:03]} 26. Rxf7 {[%emt 0:00:02]} Bh6 {[%emt 0:00:01]} 27. Rb7 {[%emt 0:00:02]} a6 {[%emt 0:00:01]} 28. Rb6 {[%emt 0:00:01]} Bf4 {[%emt 0:00:02]} 29. Kg2 {[%emt 0:00:12]} Re8 {[%emt 0:00:01]} 30. Rxa6 {[%emt 0:00:02]} Re2+ {[%emt 0:00:02]} 31. Kh3 {[%emt 0:00:01]} (31. Kf1 $18 {has better winning chances.} Rxb2 32. Re1) 31... Rxb2 $2 {[%emt 0:00:02][%mdl 8192]} (31... g5 $16 {is a better chance.} 32. Rh1 Rxb2) 32. Kg4 {[%emt 0:00:01]} Bh6 {[%emt 0:00:02]} 33. h4 {[%emt 0:00:02]} Rg2+ {[%emt 0:00:02]} 34. Kh3 {[%emt 0:00:01]} Rf2 {[%emt 0:00:01]} (34... Rg6 $142 35. h5 Rg5 36. Rxd6 Rxh5+ 37. Kg3 b4) 35. Kg3 {[%emt 0:00:01]} Rb2 {[%emt 0:00:02]} 36. Rxd6 {[%emt 0:00:01]} b4 {[%emt 0:00:01]} 37. Rb6 {[%emt 0:00:02] White wants to mate with d6.} b3 {[%emt 0:00:01]} 38. Rd3 {[%emt 0:00:01][%cal Od5d6] d6! would now be deadly.} Rb1 {[%emt 0:00:04]} 39. Rdxb3 {[%emt 0:00:01]} Rg1+ {[%emt 0:00:02]} 40. Kf2 {[%emt 0:00:01]} 1-0

[Event "European Women Blitz-ch 2024"]
[Site "Monaco"]
[Date "2025.01.10"]
[Round "4.1"]
[White "Roebers, Eline"]
[Black "Khademalsharieh, Sarasadat"]
[Result "0-1"]
[Annotator "TA"]
[ECO "C26"]
[WhiteElo "2381"]
[BlackElo "2458"]
[PlyCount "40"]
[EventDate "2025.01.06"]
[EventType "swiss"]
[EventCountry "MNC"]
[SourceTitle "playchess.com"]
[Source "ChessBase"]
[SourceQuality "1"]
[TimeControl "180+2"]

{[%evp 9,40,-27,-26,-30,-6,-59,2,-74,2,13,0,-25,-24,-24,-28,-20,-21,-11,-2,-8,4,-531,-533,-531,-518,-653,-681,-793,-759,-892,-878,-852,-846]} 1. e4 {[%emt 0:00:02]} e5 {[%emt 0:00:01]} 2. Nc3 {[%emt 0:00:01]} Nf6 {[%emt 0:00:02]} 3. d4 {[%emt 0:00:01]} exd4 {[%emt 0:00:04]} 4. Qxd4 {[%emt 0:00:01]} Nc6 {[%emt 0:00:01]} 5. Qd3 {[%emt 0:00:00]} Bc5 $1 {[%emt 0:00:06]} 6. Bf4 {[%emt 0:00:02]} d6 {[%emt 0:00:05]} 7. O-O-O {[%emt 0:00:28]} ({White should play} 7. Qd2 $11) 7... Be6 {[%emt 0:00:16]} (7... Bxf2 $15 8. h3 O-O) 8. Kb1 {[%emt 0:00:06]} (8. Be3 $11 {keeps the balance.}) 8... Qd7 {[%emt 0:00:13] Black is more active.} (8... Bxf2 $17 9. Nf3 O-O) 9. f3 $11 {[%emt 0:00:05]} O-O-O {[%emt 0:00:03]} 10. Nge2 {[%emt 0:00:26]} d5 {[%emt 0:00:18]} 11. Qb5 {[%emt 0:00:05] Wards off Nb4} (11. e5 Nh5 12. Qb5 Nxf4 13. Qxc5 Nxe2 14. Bxe2 Qe7 15. Qxe7 Nxe7 16. f4) 11... Qe7 $1 {[%emt 0:00:24]} 12. exd5 $1 {[%emt 0:00:22]} Nxd5 {[%emt 0:00:11]} 13. Nxd5 {[%emt 0:00:03]} Bxd5 {[%emt 0:00:04]} (13... Rxd5 {simplifies} 14. Rxd5 Bxd5 15. Bc1 a6) 14. Nc3 {[%emt 0:00:04]} Be6 {[%emt 0:00:01] ...Rxd1+ would now be deadly.} 15. Bd3 $2 {[%emt 0:00:16][%mdl 8192]} (15. Bc4 $11 {and White is okay.}) 15... a6 $19 {[%emt 0:00:08]} 16. Qa4 {[%emt 0:00:23][%cal Od3a6]} Rd4 {[%emt 0:00:01]} 17. Qxd4 {[%emt 0:00:07]} Bxd4 {[%emt 0:00:03]} 18. Ne4 {[%emt 0:00:06]} Qb4 {[%emt 0:00:05][%csl Gd4][%cal Rb4b2]} 19. c3 {[%emt 0:00:04] [#]} Bxc3 $1 {[%emt 0:00:02]} 20. Nxc3 {[%emt 0:00:01]} Qxf4 {[%emt 0:00:01]} 0-1

[Event "European Women Blitz-ch 2024"]
[Site "Monaco"]
[Date "2025.01.10"]
[Round "4.2"]
[White "Paehtz, Elisabeth"]
[Black "Zhukova, Natalia"]
[Result "1-0"]
[Annotator "RC"]
[ECO "D02"]
[WhiteElo "2428"]
[BlackElo "2306"]
[PlyCount "134"]
[EventDate "2025.01.06"]
[EventType "swiss"]
[EventCountry "MNC"]
[SourceTitle "playchess.com"]
[Source "ChessBase"]
[SourceQuality "1"]
[TimeControl "180+2"]

1. d4 {[%emt 0:00:01]} Nf6 {[%emt 0:00:01]} 2. Nf3 {[%emt 0:00:02]} d5 {[%emt 0:00:02]} 3. c3 {[%emt 0:00:03]} e6 {[%emt 0:00:04]} 4. Bf4 {[%emt 0:00:01]} Bd6 {[%emt 0:00:04]} 5. e3 {[%emt 0:00:02]} c5 {[%emt 0:00:04]} 6. Nbd2 {[%emt 0:00:01]} Nc6 {[%emt 0:00:11]} 7. Bg3 {[%emt 0:00:02]} O-O {[%emt 0:00:24]} 8. Bd3 {[%emt 0:00:01]} Qe7 {[%emt 0:00:14]} 9. Ne5 {[%emt 0:00:03]} Bxe5 {[%emt 0:00:19]} 10. dxe5 {[%emt 0:00:02]} Nd7 {[%emt 0:00:01]} 11. Nf3 {[%emt 0:00:11]} f6 {[%emt 0:00:15]} 12. exf6 {[%emt 0:00:07]} gxf6 {[%emt 0:00:02]} 13. e4 {[%emt 0:00:06]} c4 {[%emt 0:00:20]} 14. Bc2 {[%emt 0:00:02]} Nc5 {[%emt 0:00:02]} 15. Qe2 {[%emt 0:00:11]} Rd8 {[%emt 0:00:48]} 16. exd5 {[%emt 0:00:09]} exd5 {[%emt 0:00:01]} 17. Qxe7 {[%emt 0:00:06]} Nxe7 {[%emt 0:00:01]} 18. Nd4 {[%emt 0:00:03]} Nc6 {[%emt 0:00:10]} 19. O-O-O {[%emt 0:00:06]} Ne5 {[%emt 0:00:04]} 20. Kb1 {[%emt 0:00:09]} Ned3 {[%emt 0:00:07]} 21. b4 {[%emt 0:00:20]} Ne4 {[%emt 0:00:01]} 22. Bxd3 {[%emt 0:00:04]} Nxc3+ {[%emt 0:00:10]} 23. Kc2 {[%emt 0:00:01]} Nxd1 {[%emt 0:00:01]} 24. Be2 {[%emt 0:00:04]} Nxf2 {[%emt 0:00:19]} 25. Bxf2 {[%emt 0:00:01]} Bd7 {[%emt 0:00:01]} 26. Bf3 {[%emt 0:00:03]} Ba4+ {[%emt 0:00:02]} 27. Kc3 {[%emt 0:00:01]} Kf7 {[%emt 0:00:04]} 28. Re1 {[%emt 0:00:08]} a6 {[%emt 0:00:02]} 29. Bh5+ {[%emt 0:00:05]} Kg8 {[%emt 0:00:02]} 30. Re7 {[%emt 0:00:05]} Bc6 {[%emt 0:00:03]} 31. Nf5 {[%emt 0:00:10]} Rd7 {[%emt 0:00:01]} 32. Bc5 {[%emt 0:00:14]} Rxe7 {[%emt 0:00:01]} 33. Nxe7+ {[%emt 0:00:01]} Kg7 {[%emt 0:00:00]} 34. Nf5+ {[%emt 0:00:02]} Kg8 {[%emt 0:00:02]} 35. Kd4 {[%emt 0:00:03]} a5 {[%emt 0:00:02]} 36. b5 {[%emt 0:00:05]} Bxb5 {[%emt 0:00:01]} 37. Ne7+ {[%emt 0:00:10]} Kg7 {[%emt 0:00:01]} 38. Nxd5 {[%emt 0:00:01]} Rd8 {[%emt 0:00:03]} 39. Bf3 {[%emt 0:00:04]} Bc6 {[%emt 0:00:04]} 40. Bb6 {[%emt 0:00:06]} Re8 {[%emt 0:00:02]} 41. Kxc4 {[%emt 0:00:04]} Re1 {[%emt 0:00:02]} 42. Bxa5 {[%emt 0:00:12]} Ra1 {[%emt 0:00:02]} 43. Kb3 {[%emt 0:00:06]} Kf7 {[%emt 0:00:04]} 44. Bc3 {[%emt 0:00:07]} Rh1 {[%emt 0:00:02]} 45. h3 {[%emt 0:00:03]} f5 {[%emt 0:00:00]} 46. Bh5+ {[%emt 0:00:05]} Ke6 {[%emt 0:00:02]} 47. Nf4+ {[%emt 0:00:01]} Ke7 {[%emt 0:00:01]} 48. Be2 {[%emt 0:00:12]} Rb1+ {[%emt 0:00:02]} 49. Bb2 {[%emt 0:00:06]} Re1 {[%emt 0:00:02]} 50. Bd3 {[%emt 0:00:06]} Be4 {[%emt 0:00:01]} 51. Bc4 {[%emt 0:00:07]} Kd6 {[%emt 0:00:01]} 52. Bc3 {[%emt 0:00:04]} Rb1+ {[%emt 0:00:02]} 53. Bb2 {[%emt 0:00:01]} Re1 {[%emt 0:00:01]} 54. a4 {[%emt 0:00:06]} Re3+ {[%emt 0:00:03]} 55. Kb4 {[%emt 0:00:02]} Re1 {[%emt 0:00:02]} 56. Bd4 {[%emt 0:00:02]} Rd1 {[%emt 0:00:02]} 57. Bc3 {[%emt 0:00:03]} b6 {[%emt 0:00:03]} 58. Kb3 {[%emt 0:00:02]} Rb1+ {[%emt 0:00:02]} 59. Ka2 {[%emt 0:00:01]} Rc1 {[%emt 0:00:01]} 60. Kb2 {[%emt 0:00:01]} Rb1+ {[%emt 0:00:01]} 61. Ka2 {[%emt 0:00:17]} Rc1 {[%emt 0:00:01]} 62. Kb3 {[%emt 0:00:00]} Rb1+ {[%emt 0:00:01]} 63. Bb2 {[%emt 0:00:00]} Re1 {[%emt 0:00:01]} 64. Ba3+ {[%emt 0:00:00]} Ke5 {[%emt 0:00:02]} 65. Nd3+ {[%emt 0:00:00]} Bxd3 {[%emt 0:00:03]} 66. Bxd3 {[%emt 0:00:00]} f4 {[%emt 0:00:09]} 67. Bb2+ {[%emt 0:00:00]} Kd5 {[%emt 0:00:07]} 1-0

[Event "European Women Blitz-ch 2024"]
[Site "Monaco"]
[Date "2025.01.10"]
[Round "4.3"]
[White "Kulon, Klaudia"]
[Black "Ushenina, Anna"]
[Result "1/2-1/2"]
[Annotator "TA"]
[ECO "A13"]
[WhiteElo "2393"]
[BlackElo "2418"]
[PlyCount "157"]
[EventDate "2025.01.06"]
[EventType "swiss"]
[EventCountry "MNC"]
[SourceTitle "playchess.com"]
[Source "ChessBase"]
[SourceQuality "1"]
[TimeControl "180+2"]

{[%evp 84,157,0,0,0,0,0,-456,-303,-372,-41,-66,-83,-47,0,-410,-354,-715,-43,-43,-43,-43,0,0,27,7,7,8,14,0,0,0,18,0,0,0,0,0,0,0,0,0,0,-81,-81,-81,-81,-318,-316,-316,-316,-308,-308,-300,0,-278,-8,-300,-50,-800,-270,-378,0,0,0,0,0,0,0,0,0,0,0,0,0,0]} 1. c4 {[%emt 0:00:02]} e6 {[%emt 0:00:01]} 2. g3 {[%emt 0:00:01]} d5 {[%emt 0:00:01]} 3. Bg2 {[%emt 0:00:01]} d4 {[%emt 0:00:03]} 4. Nf3 {[%emt 0:00:01]} Nc6 {[%emt 0:00:01]} 5. O-O {[%emt 0:00:02]} Nh6 {[%emt 0:00:01]} 6. e3 {[%emt 0:00:02]} Nf5 {[%emt 0:00:04]} 7. e4 {[%emt 0:00:10]} Nfe7 {[%emt 0:00:04]} 8. d3 {[%emt 0:00:01]} Ng6 {[%emt 0:00:05]} 9. Ne1 {[%emt 0:00:18]} h5 {[%emt 0:00:06]} 10. f4 {[%emt 0:00:01]} h4 {[%emt 0:00:10]} 11. g4 {[%emt 0:00:09]} h3 {[%emt 0:00:02]} 12. Bf3 {[%emt 0:00:01]} f6 {[%emt 0:00:14]} 13. Bd2 {[%emt 0:00:12]} a5 {[%emt 0:00:06]} 14. Bh1 {[%emt 0:00:04]} Bd6 {[%emt 0:00:10]} 15. Qe2 {[%emt 0:00:02]} Qe7 {[%emt 0:00:11]} 16. Nc2 {[%emt 0:00:17]} Bd7 {[%emt 0:00:06]} 17. Nba3 {[%emt 0:00:01]} e5 {[%emt 0:00:23]} 18. f5 {[%emt 0:00:03]} Nf4 {[%emt 0:00:10]} 19. Bxf4 {[%emt 0:00:09]} exf4 {[%emt 0:00:01]} 20. Nb5 {[%emt 0:00:00]} Be5 {[%emt 0:00:01]} 21. b3 {[%emt 0:00:09]} Nb4 {[%emt 0:00:14]} 22. a3 {[%emt 0:00:11]} Nxc2 {[%emt 0:00:02]} 23. Qxc2 {[%emt 0:00:01]} c6 {[%emt 0:00:01]} 24. a4 {[%emt 0:00:10]} cxb5 {[%emt 0:00:01]} 25. axb5 {[%emt 0:00:01]} Kf7 {[%emt 0:00:21]} 26. Bf3 {[%emt 0:00:03]} g5 {[%emt 0:00:07]} 27. Rfb1 {[%emt 0:00:05]} b6 {[%emt 0:00:06]} 28. Qd1 {[%emt 0:00:07]} Rac8 {[%emt 0:00:28]} 29. Ra4 {[%emt 0:00:01]} Bd6 {[%emt 0:00:04]} 30. Qe2 {[%emt 0:00:07]} Bb4 {[%emt 0:00:04]} 31. Qd1 {[%emt 0:00:03]} Rc7 {[%emt 0:00:07]} 32. Ra2 {[%emt 0:00:03]} Rc5 {[%emt 0:00:09]} 33. Qe2 {[%emt 0:00:02]} Qe5 {[%emt 0:00:01]} 34. Rd1 {[%emt 0:00:05]} Qc7 {[%emt 0:00:02]} 35. Rb1 {[%emt 0:00:01]} Rc8 {[%emt 0:00:04]} 36. Qf1 {[%emt 0:00:05]} Rh8 {[%emt 0:00:01]} 37. Rd1 {[%emt 0:00:03]} Bxb5 {[%emt 0:00:05]} 38. cxb5 {[%emt 0:00:01]} Rc3 {[%emt 0:00:01]} 39. e5 {[%emt 0:00:02]} Qxe5 {[%emt 0:00:03]} 40. Bc6 {[%emt 0:00:04]} f3 {[%emt 0:00:09]} 41. Qxf3 {[%emt 0:00:05]} Qf4 {[%emt 0:00:04]} 42. Re2 {[%emt 0:00:12]} Bd6 $2 {[%emt 0:00:02]} (42... Rxb3 $2 43. Bd5+ Kf8 44. Qxf4 $18) (42... Qxf3 $19) 43. Qxf4 $11 {[%emt 0:00:04]} Bxf4 {[%emt 0:00:01]} 44. Bd5+ {[%emt 0:00:01]} Kf8 {[%emt 0:00:03]} 45. Bc4 $2 {[%emt 0:00:01][%mdl 8192]} (45. Re6 $11) 45... Be5 {[%emt 0:00:01]} (45... Rh4 46. Kh1 $19) 46. Rde1 {[%emt 0:00:02]} Ke7 $2 {[%emt 0:00:01]} (46... Rh4 $19 47. Re4 Rc2) 47. Rxe5+ $15 {[%emt 0:00:07]} fxe5 {[%emt 0:00:01]} 48. Rxe5+ {[%emt 0:00:01]} Kd6 {[%emt 0:00:04]} (48... Kd7 $1 $15 49. f6 Rf8) 49. Rd5+ $2 {[%emt 0:00:03][%mdl 8192]} (49. Re6+ $1 $11 Kc5 50. f6 Rc1+ 51. Kf2) 49... Kc7 $1 $19 {[%emt 0:00:03]} 50. f6 $2 {[%emt 0:00:02]} (50. Rxd4 Rc1+ 51. Kf2) 50... Rf8 $2 {[%emt 0:00:01]} (50... Re8 $19 {( -> ...Re2)} 51. Kf1 Rc1+ (51... Re3 $2 52. Rxd4 Rc2 53. Bd5 $19) 52. Kf2 Rc2+ 53. Kf1 Ree2 (53... Rxh2 54. f7 $11)) 51. Rf5 $15 {[%emt 0:00:03]} Rc2 {[%emt 0:00:05]} 52. f7 {[%emt 0:00:10]} Kd6 {[%emt 0:00:02]} 53. Rxg5 {[%emt 0:00:06]} Ke7 {[%emt 0:00:02]} 54. Re5+ {[%emt 0:00:02]} Kf6 {[%emt 0:00:00]} 55. Rf5+ {[%emt 0:00:01]} Kg6 {[%emt 0:00:01]} 56. Rf2 {[%emt 0:00:02]} Rc1+ {[%emt 0:00:06]} 57. Rf1 {[%emt 0:00:00]} Rc2 {[%emt 0:00:01]} 58. Rf4 {[%emt 0:00:04]} Rg2+ {[%emt 0:00:10]} 59. Kh1 {[%emt 0:00:03]} Re2 {[%emt 0:00:00]} 60. Kg1 {[%emt 0:00:03]} Rg2+ {[%emt 0:00:00]} 61. Kh1 {[%emt 0:00:19]} Re2 {[%emt 0:00:00]} 62. Kg1 {[%emt 0:00:01]} Rg2+ {[%emt 0:00:00]} 63. Kf1 {[%emt 0:00:06]} (63. Kh1 $11 {keeps the balance.}) 63... Rxh2 $17 {[%emt 0:00:00]} 64. Kg1 {[%emt 0:00:00]} Re2 {[%emt 0:00:04]} 65. Rxd4 $2 {[%emt 0:00:10]} (65. Rf3 $17) 65... h2+ $19 {[%emt 0:00:03]} 66. Kh1 {[%emt 0:00:02] [#]} Rh8 $1 {[%emt 0:00:01]} 67. Re4 {[%emt 0:00:00]} Rf2 {[%emt 0:00:07]} 68. Re6+ {[%emt 0:00:02]} Kg5 $2 {[%emt 0:00:02]} (68... Kxf7 $2 69. Re2+ (69. Rxb6+ $2 Kg7 $19) 69... Kf6 70. Rxf2+ $18) ({Better is} 68... Kg7 $19 {( -> ...Rf1+)} 69. Re1 Rh3) 69. Re1 $2 {[%emt 0:00:00][%mdl 8192] [#]} (69. Re5+ $1 $11 {and White stays safe.} Kxg4 70. d4) 69... Kxg4 $2 {[%emt 0:00:01]} (69... Kf6 $1 $19 70. g5+ Kg7 (70... Kxg5 71. d4 $15)) 70. Bd5 $2 {[%emt 0:00:04][%mdl 8192]} (70. d4 $1 $11 Rd2 71. Rf1) 70... Kg3 $2 {[%emt 0:00:02]} (70... Rf4 $19 {and ...Kg5 would now be decisive} 71. Bc4 Kg5) 71. Bc6 $2 {[%emt 0:00:07][%mdl 8192]} (71. Re3+ $15 Kg4 72. Be6+ Kg5 73. Rg3+ Kf6 74. Rh3 Kxe6 (74... Rf1+ 75. Kxh2 Kxe6 76. Rxh8 $17) 75. Rxh8 Rxf7 76. Rb8) 71... Rf8 $2 {[%emt 0:00:01]} (71... Rxf7 72. Bg2 Rf4) 72. Bd5 {[%emt 0:00:01]} Rd2 $2 {[%emt 0:00:01]} (72... R2xf7 $19 73. Bxf7 Rxf7) 73. Re3+ $11 {[%emt 0:00:01]} Kg4 {[%emt 0:00:02]} 74. Re8 {[%emt 0:00:02]} Kg3 {[%emt 0:00:01]} 75. Re3+ {[%emt 0:00:01]} Kg4 {[%emt 0:00:02]} 76. Re4+ {[%emt 0:00:07]} Kg3 {[%emt 0:00:00]} 77. Re3+ {[%emt 0:00:02]} Kg4 {[%emt 0:00:01]} 78. Re4+ {[%emt 0:00:09]} Kg3 {[%emt 0:00:01]} 79. Re3+ {[%emt 0:00:03]} 1/2-1/2

[Event "European Women Blitz-ch 2024"]
[Site "Monaco"]
[Date "2025.01.10"]
[Round "4.4"]
[White "Kazarian, Anna-Maja"]
[Black "Maltsevskaya, Aleksandra"]
[Result "1-0"]
[Annotator "TA"]
[ECO "B45"]
[WhiteElo "2206"]
[BlackElo "2368"]
[PlyCount "73"]
[EventDate "2025.01.06"]
[EventType "swiss"]
[EventCountry "MNC"]
[SourceTitle "playchess.com"]
[Source "ChessBase"]
[SourceQuality "1"]
[TimeControl "180+2"]

{[%evp 17,73,25,38,0,48,57,42,8,17,18,67,66,59,-149,160,112,102,104,193,191,196,136,163,158,231,230,228,227,223,216,202,159,157,152,284,279,369,361,335,270,268,261,268,265,516,291,278,241,1890,1744,2037,1735,2548,1482,3053,2448,5551,3557]} 1. e4 {[%emt 0:00:02]} c5 {[%emt 0:00:03]} 2. Nf3 {[%emt 0:00:01]} e6 {[%emt 0:00:01]} 3. d4 {[%emt 0:00:01]} cxd4 {[%emt 0:00:01]} 4. Nxd4 {[%emt 0:00:01]} Nf6 {[%emt 0:00:02][%cal Bg8f6,Bf6d5,Bd5e3][%mdl 32]} 5. Nc3 {[%emt 0:00:05]} Nc6 {[%emt 0:00:01]} 6. Nxc6 {[%emt 0:00:04]} bxc6 {[%emt 0:00:02]} 7. e5 {[%emt 0:00:01]} Nd5 {[%emt 0:00:01]} 8. Ne4 {[%emt 0:00:01]} Qc7 {[%emt 0:00:02]} 9. f4 {[%emt 0:00:01]} Qb6 {[%emt 0:00:01]} 10. a3 {[%emt 0:00:01] Prevents Qb4+.} Ba6 {[%emt 0:03:08]} (10... Be7 $11) 11. c4 $14 {[%emt 0:00:09]} Ne3 {[%emt 0:00:00]} 12. Qd3 {[%emt 0:00:05] White is slightly better.} (12. c5 $5 Bxc5 13. Bxe3 Bxe3 14. Bxa6 $14) 12... Nxf1 {[%emt 0:00:00]} (12... Nxc4 13. Qc3 d5 14. exd6 Nxd6 15. Nxd6+ Bxd6 16. Be3 $16) 13. Rxf1 {[%emt 0:00:18]} Be7 {[%emt 0:00:00]} (13... Qa5+ $11 14. Ke2 f5 15. Nd6+ (15. exf6 d5 $15) 15... Bxd6 16. exd6 c5) 14. b4 {[%emt 0:00:22]} O-O {[%emt 0:00:00]} 15. Be3 $2 {[%emt 0:00:04]} (15. Qxd7 $2 Bh4+ 16. g3 Rfd8 $19) (15. Bb2 $14 {stays ahead.}) 15... Qc7 $2 {[%emt 0:00:00][%mdl 8192] Black is weak on the dark squares} (15... Bxc4 $1 $17 {and life is bright.} 16. Qc3 Qb5) 16. Rf3 {[%emt 0:00:07] White has more active pieces.} (16. Bc5 $142 Qd8 (16... Bxc5 $2 17. Nxc5 Bc8 18. Qd6 $18) 17. Bxe7 Qxe7 18. Kf2) 16... f5 $16 {[%emt 0:00:00]} 17. Nd6 {[%emt 0:00:14]} c5 {[%emt 0:00:00]} 18. Bxc5 $18 {[%emt 0:00:26]} Qc6 {[%emt 0:00:00]} 19. Rg3 {[%emt 0:00:04]} (19. O-O-O $18) 19... Bxd6 {[%emt 0:00:03]} 20. exd6 {[%emt 0:00:46] aiming for Bd4.} ({Much less strong is} 20. Qxd6 $6 Qe4+ 21. Be3 Qxc4 $14 (21... Bxc4 22. Qxd7 Rf7 23. Qd4 $14)) 20... Qe4+ {[%emt 0:00:08]} (20... Bb7 $16 {was worth a try.} 21. Qd4 Qe4+ 22. Qxe4 fxe4) 21. Qxe4 {[%emt 0:00:08]} fxe4 {[%emt 0:00:01]} 22. b5 {[%emt 0:00:05]} Bb7 {[%emt 0:00:01]} 23. Bd4 $40 {[%emt 0:00:04][%mdl 128] Black is in trouble.} g6 {[%emt 0:00:01]} 24. Be3 {[%emt 0:00:10]} a6 {[%emt 0:00:01]} 25. a4 {[%emt 0:00:07][%cal Ba3a4,Ba4a5][%mdl 32]} axb5 {[%emt 0:00:06]} (25... Rfc8 $16) 26. cxb5 {[%emt 0:00:01]} Rfc8 {[%emt 0:00:04]} 27. a5 {[%emt 0:00:04]} Bd5 {[%emt 0:00:04]} 28. b6 {[%emt 0:00:09]} Bb7 {[%emt 0:00:02]} 29. Bd4 {[%emt 0:00:02]} Rc4 {[%emt 0:00:01]} 30. Be5 {[%emt 0:00:07][%cal Oa5a6] [#] Threatens to win with a6!} Rc5 $2 {[%emt 0:00:02]} (30... Ba6 31. Rb3 Rb8) 31. Rc3 {[%emt 0:00:03]} Rxc3 {[%emt 0:00:04]} 32. Bxc3 {[%emt 0:00:02] KRB-KRB} Rc8 $2 {[%emt 0:00:03]} (32... Ba6 33. Be5 Kf7) 33. a6 {[%emt 0:00:04] White is clearly winning.} Bxa6 {[%emt 0:00:02]} 34. Rxa6 {[%emt 0:00:01] [#] White threatens b7 and mate.} Kf7 {[%emt 0:00:02]} 35. b7 {[%emt 0:00:02]} Rb8 {[%emt 0:00:00]} 36. Ra7 {[%emt 0:00:02]} e5 {[%emt 0:00:02]} 37. Ba5 {[%emt 0:00:02] Weighted Error Value: White=0.42/Black=0.52.  Mistake:       	White=3     	Black=8      Inaccurate:     	White=2     	Black=1      OK:         	White=7     	Black=9      Best:        	White=4     	---} 1-0

[Event "European Women Blitz-ch 2024"]
[Site "Monaco"]
[Date "2025.01.10"]
[Round "4.5"]
[White "Socko, Monika"]
[Black "Stefanova, Antoaneta"]
[Result "1/2-1/2"]
[Annotator "TA"]
[ECO "D78"]
[WhiteElo "2371"]
[BlackElo "2418"]
[PlyCount "39"]
[EventDate "2025.01.06"]
[EventType "swiss"]
[EventCountry "MNC"]
[SourceTitle "playchess.com"]
[Source "ChessBase"]
[SourceQuality "1"]
[TimeControl "180+2"]

{[%evp 17,39,29,13,10,-1,5,2,0,10,0,0,5,7,4,15,0,-7,-7,0,0,0,-4,0,0]} 1. d4 {[%emt 0:00:01]} d5 {[%emt 0:00:01]} 2. Nf3 {[%emt 0:00:01]} Nf6 {[%emt 0:00:02]} 3. g3 {[%emt 0:00:01]} g6 {[%emt 0:00:05]} 4. Bg2 {[%emt 0:00:03]} Bg7 {[%emt 0:00:00]} 5. O-O {[%emt 0:00:01]} O-O {[%emt 0:00:01]} 6. c4 {[%emt 0:00:01]} c6 {[%emt 0:00:01]} 7. b3 {[%emt 0:00:09]} a5 {[%emt 0:00:03]} 8. Nc3 {[%emt 0:00:05]} Bf5 {[%emt 0:00:08]} 9. Bb2 {[%emt 0:00:03]} Ne4 {[%emt 0:00:05]} 10. Nh4 {[%emt 0:00:09] The position is equal.} Nxc3 {[%emt 0:00:06]} 11. Bxc3 {[%emt 0:00:01]} Be6 {[%emt 0:00:01]} 12. Qd3 {[%emt 0:00:18]} a4 {[%emt 0:00:19]} 13. Rfd1 {[%emt 0:00:14]} axb3 {[%emt 0:00:06]} 14. axb3 {[%emt 0:00:01]} Rxa1 {[%emt 0:00:02]} 15. Rxa1 {[%emt 0:00:06]} Qb6 {[%emt 0:00:26]} 16. c5 {[%emt 0:00:19]} Qxb3 {[%emt 0:00:42]} 17. Rb1 {[%emt 0:00:02]} Qa3 {[%emt 0:00:05]} 18. Ra1 {[%emt 0:00:03]} Qb3 {[%emt 0:00:02]} 19. Rb1 {[%emt 0:00:01]} Qa3 {[%emt 0:00:02]} 20. Ra1 {[%emt 0:00:00] An uneventful encounter.   Weighted Error Value: White=0.05 (flawless) /Black=0.03 (flawless) .  OK:         	White=4     	Black=4      Best:        	---       	Black=1} 1/2-1/2